fUSD/lending_fUSD_20250708
["ID","MTS","AMOUNT","RATE_DAILY","PERIOD"]
[370342206,1751970649648,-460.0,0.00027965,3]
[370342207,1751970649659,-460.0,0.00027965,3]
[370342208,1751970649670,-460.0,0.00027965,3]
[370342209,1751970649680,-1124.43,0.00027965,3]
[370342210,1751970649691,-460.0,0.00027965,3]
[370342211,1751970649702,-1195.19,0.00027965,3]
[370342212,1751970649712,-1174.97,0.00027965,3]
[370342213,1751970649723,-460.0,0.00027965,3]
[370342214,1751970649735,-460.0,0.00027965,3]
[370342215,1751970649745,-3055.7,0.00027965,3]
[370342216,1751970649755,-636.99,0.00027965,3]
[370342217,1751970649767,-575.93,0.00027965,3]
[370342218,1751970649778,-483.87,0.00027965,3]
[370342219,1751970649789,-523.31280139,0.00027965,3]
[370342220,1751970649800,-500.0,0.00027965,2]
[370342221,1751970649810,-840.55,0.00027965,3]
[370342222,1751970649821,-460.0,0.00027965,3]
[370342223,1751970649832,-500.0,0.00027965,3]
[370342224,1751970649841,-460.0,0.00027965,3]
[370342225,1751970649852,-460.0,0.00027965,3]
[370342226,1751970649862,-460.0,0.00027965,3]
[370342227,1751970649873,-676.55,0.00027965,3]
[370342228,1751970649884,-3082.79,0.00027965,3]
[370342229,1751970649895,-460.0,0.00027965,3]
[370342230,1751970649906,-460.0,0.00027965,3]
[370342231,1751970649916,-514.58,0.00027965,3]
[370342232,1751970649927,-460.0,0.00027965,3]
[370342233,1751970649938,-460.0,0.00027965,3]
[370342234,1751970649948,-639.61,0.00027965,3]
[370342235,1751970649958,-460.0,0.00027965,3]
[370342236,1751970649969,-552.78,0.00027965,3]
[370342237,1751970649980,-460.0,0.00027965,3]
[370342238,1751970649990,-460.0,0.00027965,3]
[370342239,1751970650000,-605.33,0.00027965,3]
[370342240,1751970650011,-598.44,0.00027965,3]
[370342241,1751970650022,-460.0,0.00027965,3]
[370342242,1751970650032,-500.0,0.00027965,3]
[370342243,1751970650043,-3444.77,0.00027965,3]
[370342244,1751970650053,-460.0,0.00027965,9]
[370342245,1751970650063,-550.7,0.00027965,3]
[370342246,1751970650074,-460.0,0.00027965,3]
[370342247,1751970650084,-460.0,0.00027965,3]
[370342248,1751970650093,-460.0,0.00027965,3]
[370342249,1751970650103,-1495.41,0.00027965,3]
[370342250,1751970650114,-460.0,0.00027965,3]
[370342251,1751970650124,-720.95,0.00027965,3]
[370342252,1751970650135,-1895.6,0.00027965,3]
[370342253,1751970650146,-460.0,0.00027965,3]
[370342254,1751970650156,-460.0,0.00027965,3]
[370342255,1751970650166,-460.0,0.00027965,3]
[370342256,1751970650176,-472.25,0.00027965,3]
[370342257,1751970650187,-830.59,0.00027965,3]
[370342258,1751970650197,-1199.89,0.00027965,3]
[370342259,1751970650207,-557.81,0.00027965,3]
[370342260,1751970650217,-460.0,0.00027965,3]
[370342261,1751970650228,-604.14,0.00027965,3]
[370342262,1751970650239,-460.0,0.00027965,3]
[370342263,1751970650249,-1547.7,0.00027965,3]
[370342264,1751970650260,-527.93,0.00027965,3]
[370342265,1751970650270,-1678.66,0.00027965,3]
[370342266,1751970650280,-589.11,0.00027965,3]
[370342267,1751970650290,-460.0,0.00027965,3]
[370342268,1751970650301,-3381.93,0.00027965,3]
[370342269,1751970650311,-1392.5,0.00027965,3]
[370342270,1751970650321,-1499.24,0.00027965,3]
[370342271,1751970650336,-460.0,0.00027965,3]
[370342272,1751970650346,-460.0,0.00027965,3]
[370342273,1751970650357,-841.3,0.00027965,3]
[370342274,1751970650367,-492.71,0.00027965,3]
[370342275,1751970650378,-460.0,0.00027965,3]
[370342276,1751970650389,-3658.61,0.00027965,3]
[370342277,1751970650401,-460.0,0.00027965,3]
[370342278,1751970650414,-460.0,0.00027965,3]
[370342279,1751970650424,-460.0,0.00027965,3]
[370342280,1751970650435,-1412.96,0.00027965,3]
[370342281,1751970650445,-1030.69,0.00027965,3]
[370342282,1751970650455,-460.0,0.00027965,3]
[370342283,1751970650467,-460.0,0.00027965,3]
[370342284,1751970650477,-1000.0,0.00027965,3]
[370342285,1751970650487,-460.0,0.00027965,3]
[370342286,1751970650496,-460.0,0.00027965,3]
[370342287,1751970650506,-460.0,0.00027965,3]
[370342288,1751970650516,-1743.25,0.00027965,3]
[370342289,1751970650527,-568.56,0.00027965,3]
[370342290,1751970650537,-460.0,0.00027965,3]
[370342291,1751970650547,-151.0,0.00027965,7]
[370342292,1751970650557,-151.0,0.00027965,7]
[370342293,1751970650568,-460.0,0.00027965,3]
[370342294,1751970650578,-773.63,0.00027965,3]
[370342295,1751970650588,-460.0,0.00027965,3]
[370342296,1751970650598,-460.0,0.00027965,3]
[370342297,1751970650608,-690.99,0.00027965,3]
[370342298,1751970650618,-537.75,0.00027965,3]
[370342299,1751970650627,-460.0,0.00027965,3]
[370342300,1751970650637,-460.0,0.00027965,3]
[370342301,1751970650646,-559.73,0.00027965,3]
[370342302,1751970650656,-460.0,0.00027965,3]
[370342303,1751970650666,-601.48,0.00027965,3]
[370342304,1751970650676,-616.3,0.00027965,3]
[370342305,1751970650686,-460.0,0.00027965,3]
[370342306,1751970650696,-460.0,0.00027965,3]
[370342307,1751970650705,-496.3,0.00027965,3]
[370342308,1751970650715,-654.68,0.00027965,3]
[370342309,1751970650725,-577.37,0.00027965,3]
[370342310,1751970650734,-460.0,0.00027965,3]
[370342311,1751970650744,-12439.65,0.00027965,3]
[370342312,1751970650753,-632.88,0.00027965,3]
[370342313,1751970650763,-748.94,0.00027965,3]
[370342314,1751970650772,-460.0,0.00027965,3]
[370342315,1751970650782,-460.0,0.00027965,3]
[370342316,1751970650792,-460.0,0.00027965,3]
[370342317,1751970650801,-503.59,0.00027965,3]
[370342318,1751970650811,-460.0,0.00027965,3]
[370342319,1751970650820,-460.0,0.00027965,3]
[370342320,1751970650830,-460.0,0.00027965,3]
[370342321,1751970650840,-514.55085451,0.00027965,3]
[370342322,1751970650850,-750.57,0.00027965,3]
[370342323,1751970650859,-460.0,0.00027965,3]
[370342324,1751970650869,-460.0,0.00027965,3]
[370342325,1751970650879,-460.0,0.00027965,3]
[370342326,1751970650889,-5093.31,0.00027965,3]
[370342327,1751970650900,-500.0,0.00027965,3]
[370342328,1751970650910,-460.0,0.00027965,3]
[370342329,1751970650920,-976.63,0.00027965,3]
[370342330,1751970650930,-2153.21,0.00027965,3]
[370342331,1751970650941,-460.0,0.00027965,3]
[370342332,1751970650951,-3226.78,0.00027965,3]
[370342333,1751970650961,-460.0,0.00027965,3]
[370342334,1751970650971,-460.0,0.00027965,3]
[370342335,1751970650981,-460.0,0.00027965,3]
[370342336,1751970650991,-460.0,0.00027965,3]
[370342337,1751970651001,-4540.48,0.00027965,3]
[370342338,1751970651011,-460.0,0.00027965,3]
[370342339,1751970651022,-673.19,0.00027965,3]
[370342340,1751970651032,-694.99,0.00027965,3]
[370342341,1751970651043,-613.69,0.00027965,3]
[370342342,1751970651053,-460.0,0.00027965,3]
[370342343,1751970651064,-678.23,0.00027965,3]
[370342344,1751970651074,-460.0,0.00027965,3]
[370342345,1751970651085,-460.0,0.00027965,3]
[370342346,1751970651095,-2060.78,0.00027965,3]
[370342347,1751970651106,-469.18,0.00027965,3]
[370342348,1751970651117,-3234.21,0.00027965,3]
[370342349,1751970651128,-1586.85,0.00027965,3]
[370342350,1751970651138,-667.17,0.00027965,3]
[370342351,1751970651148,-464.02,0.00027965,3]
[370342352,1751970651157,-460.0,0.00027965,3]
[370342353,1751970651167,-460.0,0.00027965,3]
[370342354,1751970651177,-781.81,0.00027965,3]
[370342355,1751970651187,-151.0,0.00027965,7]
[370342356,1751970651196,-151.0,0.00027965,7]
[370342357,1751970651205,-3850.56,0.00027965,3]
[370342358,1751970651215,-1171.19,0.00027965,3]
[370342359,1751970651224,-460.0,0.00027965,3]
[370342360,1751970651234,-460.0,0.00027965,3]
[370342361,1751970651244,-616.07,0.00027965,3]
[370342362,1751970651253,-151.0,0.00027965,7]
[370342363,1751970651263,-460.0,0.00027965,3]
[370342364,1751970651273,-1512.03,0.00027965,3]
[370342365,1751970651282,-151.0,0.00027965,7]
[370342366,1751970651292,-522.91,0.00027965,3]
[370342367,1751970651302,-514.47,0.00027965,3]
[370342368,1751970651311,-460.0,0.00027965,3]
[370342369,1751970651321,-4801.48,0.00027965,3]
[370342370,1751970651335,-220.01714605,0.00027965,3]
[370342371,1751970651345,-2074.67,0.00027965,3]
[370342372,1751970651355,-1273.92,0.00027965,3]
[370342373,1751970651366,-627.25,0.00027965,3]
[370342374,1751970651378,-460.0,0.00027965,3]
[370342375,1751970651388,-460.0,0.00027965,3]
[370342376,1751970651398,-567.22,0.00027965,3]
[370342377,1751970651409,-4414.38,0.00027965,3]
[370342378,1751970651419,-460.0,0.00027965,3]
[370342379,1751970651429,-460.0,0.00027965,3]
[370342380,1751970651438,-486.32,0.00027965,3]
[370342381,1751970651448,-460.0,0.00027965,3]
[370342382,1751970651458,-860.6,0.00027965,3]
[370342383,1751970651468,-460.0,0.00027965,3]
[370342384,1751970651477,-460.0,0.00027965,3]
[370342385,1751970651487,-460.0,0.00027965,3]
[370342386,1751970651498,-764.13,0.00027965,3]
[370342387,1751970651508,-1769.67,0.00027965,3]
[370342388,1751970651518,-793.68,0.00027965,3]
[370342389,1751970651528,-460.0,0.00027965,3]
[370342390,1751970651539,-460.0,0.00027965,3]
[370342391,1751970651549,-460.0,0.00027965,3]
[370342392,1751970651559,-1799.87,0.00027965,3]
[370342393,1751970651569,-460.0,0.00027965,3]
[370342394,1751970651581,-460.0,0.00027965,3]
[370342395,1751970651591,-460.0,0.00027965,3]
[370342396,1751970651601,-151.0,0.00027965,7]
[370342397,1751970651611,-151.0,0.00027965,7]
[370342398,1751970651621,-500.0,0.00027965,3]
[370342399,1751970651630,-151.0,0.00027965,7]
[370342400,1751970651641,-1965.24,0.00027965,3]
[370342401,1751970651650,-460.0,0.00027965,3]
[370342402,1751970651660,-639.22,0.00027965,3]
[370342403,1751970651670,-460.0,0.00027965,3]
[370342404,1751970651679,-460.0,0.00027965,3]
[370342405,1751970651690,-460.0,0.00027965,3]
[370342406,1751970651700,-2108.47,0.00027965,3]
[370342407,1751970651709,-151.0,0.00027965,7]
[370342408,1751970651720,-151.0,0.00027965,7]
[370342409,1751970651731,-158.301503,0.00027965,7]
[370342410,1751970651742,-247.50554217,0.00027966,2]
[370342411,1751970651752,-500.0,0.00027966,7]
[370342412,1751970651762,-444.0,0.00027966,7]
[370342413,1751970651772,-417.0,0.00027966,7]
[370342414,1751970651782,-150.0,0.00027966,7]
[370342415,1751970651792,-150.0,0.00027966,7]
[370342416,1751970651803,-150.0,0.00027966,7]
[370342417,1751970651813,-150.0,0.00027966,7]
[370342418,1751970651825,-150.0,0.00027966,7]
[370342419,1751970651835,-500.0,0.00027966,7]
[370342420,1751970651845,-902.0,0.00027966,7]
[370342421,1751970651855,-150.0,0.00027966,7]
[370342422,1751970651866,-150.0,0.00027966,2]
[370342423,1751970651876,-500.0,0.00027966,7]
[370342424,1751970651886,-500.0,0.00027966,3]
[370342425,1751970651896,-150.0,0.00027966,7]
[370342426,1751970651907,-150.0,0.00027966,7]
[370342427,1751970651917,-500.0,0.00027966,3]
[370342428,1751970652128,-500.0,0.00027966,7]
[370342429,1751970652139,-500.0,0.00027966,7]
[370342430,1751970652150,-499.52,0.00027967,3]
[370342431,1751970652162,-460.0,0.00027967,3]
[370342432,1751970652172,-460.0,0.00027967,3]
[370342433,1751970652181,-460.0,0.00027967,3]
[370342434,1751970652190,-460.0,0.00027967,3]
[370342435,1751970652199,-460.0,0.00027967,3]
[370342436,1751970652209,-460.0,0.00027967,3]
[370342437,1751970652218,-160.599912,0.00027967,7]
[370342438,1751970652227,-151.0,0.00027967,7]
[370342439,1751970652236,-151.0,0.00027967,7]
[370342440,1751970652246,-151.0,0.00027967,7]
[370342441,1751970652256,-557.18,0.00027967,3]
[370342442,1751970652267,-5638.17,0.00027967,3]
[370342443,1751970652277,-511.65,0.00027967,3]
[370342444,1751970652286,-1567.06,0.00027967,3]
[370342445,1751970652295,-774.81,0.00027967,3]
[370342446,1751970652304,-151.0,0.00027967,7]
[370342447,1751970652315,-151.0,0.00027967,7]
[370342448,1751970652326,-1163.28,0.00027967,3]
[370342449,1751970652339,-460.0,0.00027967,3]
[370342450,1751970652349,-913.42,0.00027967,3]
[370342451,1751970652359,-151.0,0.00027967,7]
[370342452,1751970652370,-687.94,0.00027967,3]
[370342453,1751970652383,-2168.44,0.00027967,3]
[370342454,1751970652393,-151.0,0.00027967,7]
[370342455,1751970652402,-151.0,0.00027967,7]
[370342456,1751970652414,-151.0,0.00027967,7]
[370342457,1751970652425,-151.0,0.00027967,7]
[370342458,1751970652434,-771.75220982,0.0002797,15]
[370342459,1751970652443,-151.0,0.0002797,7]
[370342460,1751970652453,-500.0,0.00027972,3]
[370342461,1751970652462,-460.0,0.00027972,3]
[370342462,1751970652472,-460.0,0.00027972,3]
[370342463,1751970652481,-460.0,0.00027972,3]
[370342464,1751970652490,-460.0,0.00027972,3]
[370342465,1751970652501,-460.0,0.00027972,3]
[370342466,1751970652510,-490.0,0.00027972,3]
[370342467,1751970652520,-460.0,0.00027972,3]
[370342468,1751970652530,-460.0,0.00027972,3]
[370342469,1751970652539,-532.48,0.00027972,3]
[370342470,1751970652548,-512.52,0.00027972,3]
[370342471,1751970652557,-460.0,0.00027972,3]
[370342472,1751970652566,-500.0,0.00027972,3]
[370342473,1751970652576,-500.0,0.00027972,3]
[370342474,1751970652585,-500.0,0.00027972,2]
[370342475,1751970652594,-500.0,0.00027972,3]
[370342476,1751970652603,-500.0,0.00027972,3]
[370342477,1751970652612,-500.0,0.00027972,3]
[370342478,1751970652621,-500.0,0.00027972,3]
[370342479,1751970652632,-500.0,0.00027973,5]
[370342480,1751970652642,-326.08937302,0.00027973,5]
[370342481,1751970652651,-500.0,0.00027973,5]
[370342482,1751970652660,-503.54800636,0.00027973,5]
[370342483,1751970652670,-500.0,0.00027973,5]
[370342484,1751970652680,-504.22473831,0.00027973,5]
[370342485,1751970652689,-500.0,0.00027973,5]
[370342486,1751970652698,-165.37016742,0.00027973,3]
[370342487,1751970652707,-500.0,0.00027973,5]
[370342488,1751970652717,-500.0,0.00027973,5]
[370342489,1751970652726,-500.0,0.00027973,5]
[370342490,1751970652735,-500.0,0.00027973,3]
[370342491,1751970652744,-501.96599084,0.00027973,5]
[370342492,1751970652753,-500.0,0.00027973,5]
[370342493,1751970652763,-500.0,0.00027973,5]
[370342494,1751970652772,-160.49492803,0.00027973,5]
[370342495,1751970652781,-500.0,0.00027973,5]
[370342496,1751970652790,-187926.43679076,0.00027973,5]
[370342497,1751970652801,-251.047475,0.00027973,7]
[370342498,1751970652811,-251.047475,0.00027973,7]
[370342499,1751970652821,-151.0,0.00027973,7]
[370342500,1751970652830,-151.0,0.00027973,7]
[370342501,1751970652839,-151.0,0.00027973,7]
[370342502,1751970652849,-160.665767,0.00027973,7]
[370342503,1751970652859,-155.482208,0.00027973,7]
[370342504,1751970652868,-195.378623,0.00027973,7]
[370342505,1751970652877,-151.0,0.00027973,7]
[370342506,1751970652886,-151.0,0.00027973,2]
[370342507,1751970652896,-151.0,0.00027973,7]
[370342508,1751970652905,-151.0,0.00027973,7]
[370342509,1751970652914,-151.0,0.00027973,7]
[370342510,1751970652923,-260.850857,0.00027973,7]
[370342511,1751970652932,-260.850857,0.00027973,7]
[370342512,1751970652942,-151.0,0.00027973,7]
[370342513,1751970652951,-151.0,0.00027973,7]
[370342514,1751970652960,-151.0,0.00027973,7]
[370342515,1751970652969,-151.0,0.00027973,7]
[370342516,1751970652979,-151.0,0.00027973,7]
[370342517,1751970652989,-1149.803173,0.00027973,7]
[370342518,1751970652998,-151.0,0.00027973,7]
[370342519,1751970653007,-151.0,0.00027973,7]
[370342520,1751970653016,-151.0,0.00027973,7]
[370342521,1751970653025,-151.0,0.00027973,7]
[370342522,1751970653034,-151.0,0.00027973,7]
[370342523,1751970653043,-151.0,0.00027973,7]
[370342524,1751970653053,-151.0,0.00027973,7]
[370342525,1751970653062,-151.0,0.00027973,7]
[370342526,1751970653071,-992.064108,0.00027973,7]
[370342527,1751970653082,-992.064108,0.00027973,7]
[370342528,1751970653091,-151.0,0.00027973,7]
[370342529,1751970653101,-151.0,0.00027973,7]
[370342530,1751970653110,-151.0,0.00027973,7]
[370342531,1751970653119,-151.0,0.00027973,7]
[370342532,1751970653128,-151.0,0.00027973,7]
[370342533,1751970653138,-151.0,0.00027973,7]
[370342534,1751970653147,-208.218645,0.00027973,7]
[370342535,1751970653156,-208.218645,0.00027973,7]
[370342536,1751970653165,-387.266645,0.00027973,7]
[370342537,1751970653174,-387.266645,0.00027973,7]
[370342538,1751970653183,-151.0,0.00027973,7]
[370342539,1751970653192,-151.0,0.00027973,7]
[370342540,1751970653202,-154.623689,0.00027973,7]
[370342541,1751970653211,-151.0,0.00027973,7]
[370342542,1751970653220,-151.0,0.00027973,7]
[370342543,1751970653230,-151.0,0.00027973,7]
[370342544,1751970653239,-151.0,0.00027973,7]
[370342545,1751970653248,-151.0,0.00027973,7]
[370342546,1751970653257,-151.0,0.00027973,7]
[370342547,1751970653266,-151.0,0.00027973,7]
[370342548,1751970653275,-356.060789,0.00027973,7]
[370342549,1751970653284,-356.060789,0.00027973,7]
[370342550,1751970653293,-151.0,0.00027973,7]
[370342551,1751970653303,-500.0,0.00027975,3]
[370342552,1751970653312,-500.0,0.00027975,3]
[370342553,1751970653321,-500.0,0.00027975,3]
[370342554,1751970653336,-500.0,0.00027975,3]
[370342555,1751970653346,-500.0,0.00027975,3]
[370342556,1751970653355,-500.0,0.00027975,3]
[370342557,1751970653364,-500.0,0.00027975,3]
[370342558,1751970653374,-500.0,0.00027975,3]
[370342559,1751970653383,-500.0,0.00027975,2]
[370342560,1751970653392,-500.0,0.00027975,2]
[370342561,1751970653401,-500.0,0.00027975,2]
[370342562,1751970653411,-500.0,0.00027975,2]
[370342563,1751970653420,-500.0,0.00027975,2]
[370342564,1751970653430,-500.0,0.00027975,2]
[370342565,1751970653439,-500.0,0.00027975,2]
[370342566,1751970653449,-500.0,0.00027975,3]
[370342567,1751970653458,-500.0,0.00027975,3]
[370342568,1751970653467,-500.0,0.00027975,3]
[370342569,1751970653477,-500.0,0.00027975,3]
[370342570,1751970653486,-500.0,0.00027975,3]
[370342571,1751970653495,-507.61506188,0.00027975,3]
[370342572,1751970653505,-500.0,0.00027975,3]
[370342573,1751970653514,-500.0,0.00027975,3]
[370342574,1751970653523,-500.0,0.00027975,3]
[370342575,1751970653533,-500.0,0.00027975,3]
[370342576,1751970653542,-500.0,0.00027975,3]
[370342577,1751970653551,-500.0,0.00027975,3]
[370342578,1751970653560,-500.0,0.00027975,3]
[370342579,1751970653569,-500.0,0.00027975,3]
[370342580,1751970653579,-500.0,0.00027975,3]
[370342581,1751970653588,-500.0,0.00027975,3]
[370342582,1751970653597,-500.0,0.00027975,3]
[370342583,1751970653606,-460.0,0.00027976,3]
[370342584,1751970653616,-460.0,0.00027976,3]
[370342585,1751970653626,-460.0,0.00027976,3]
[370342586,1751970653635,-460.0,0.00027976,3]
[370342587,1751970653644,-460.0,0.00027976,3]
[370342588,1751970653654,-460.0,0.00027976,3]
[370342589,1751970653663,-460.0,0.00027976,3]
[370342590,1751970653673,-531.89770287,0.00027976,3]
[370342591,1751970653682,-252.72194863,0.00027976,3]
[370342592,1751970653691,-460.0,0.00027976,3]
[370342593,1751970653701,-460.0,0.00027976,3]
[370342594,1751970653710,-460.0,0.00027976,3]
[370342595,1751970653720,-460.0,0.00027976,3]
[370342596,1751970653730,-460.0,0.00027976,3]
[370342597,1751970653740,-460.0,0.00027976,3]
[370342598,1751970653749,-497.7,0.00027976,3]
[370342599,1751970653758,-460.0,0.00027976,3]
[370342600,1751970653767,-460.0,0.00027976,3]
[370342601,1751970653777,-251.047475,0.00027976,7]
[370342602,1751970653786,-251.047475,0.00027976,7]
[370342603,1751970653795,-251.047475,0.00027976,7]
[370342604,1751970653805,-251.047475,0.00027976,7]
[370342605,1751970653814,-151.0,0.00027976,7]
[370342606,1751970653823,-151.0,0.00027976,7]
[370342607,1751970653832,-151.0,0.00027976,7]
[370342608,1751970653842,-151.0,0.00027976,7]
[370342609,1751970653852,-151.0,0.00027976,7]
[370342610,1751970653861,-151.0,0.00027976,7]
[370342611,1751970653871,-460.0,0.00027976,3]
[370342612,1751970653880,-490.0,0.00027976,3]
[370342613,1751970653890,-460.0,0.00027976,3]
[370342614,1751970653899,-151.0,0.00027976,7]
[370342615,1751970653909,-460.0,0.00027976,3]
[370342616,1751970653919,-151.0,0.00027976,7]
[370342617,1751970653930,-151.82337,0.00027976,2]
[370342618,1751970653939,-460.0,0.00027976,3]
[370342619,1751970653948,-460.0,0.00027976,3]
[370342620,1751970653959,-301.62176241,0.00027976,3]
[370342621,1751970653968,-500.14688664,0.00027976,3]
[370342622,1751970653978,-460.0,0.00027976,3]
[370342623,1751970653988,-517.26498371,0.00027976,3]
[370342624,1751970653997,-460.0,0.00027976,2]
[370342625,1751970654007,-460.0,0.00027976,3]
[370342626,1751970654016,-461.85680024,0.00027976,3]
[370342627,1751970654026,-460.0,0.00027976,2]
[370342628,1751970654035,-465.72358174,0.00027976,3]
[370342629,1751970654045,-460.0,0.00027976,3]
[370342630,1751970654054,-460.0,0.00027976,3]
[370342631,1751970654063,-460.0,0.00027976,3]
[370342632,1751970654073,-460.0,0.00027976,3]
[370342633,1751970654083,-151.0,0.00027976,7]
[370342634,1751970654092,-151.0,0.00027976,7]
[370342635,1751970654101,-550.0,0.00027976,3]
[370342636,1751970654111,-460.0,0.00027976,3]
[370342637,1751970654120,-460.0,0.00027976,3]
[370342638,1751970654130,-151.0,0.00027976,7]
[370342639,1751970654139,-151.0,0.00027976,7]
[370342640,1751970654149,-460.0,0.00027976,3]
[370342641,1751970654158,-460.0,0.00027976,3]
[370342642,1751970654168,-151.0,0.00027976,7]
[370342643,1751970654178,-151.0,0.00027976,7]
[370342644,1751970654187,-398.445981,0.00027976,3]
[370342645,1751970654197,-460.0,0.00027976,3]
[370342646,1751970654207,-460.0,0.00027976,3]
[370342647,1751970654217,-151.0,0.00027976,7]
[370342648,1751970654228,-151.0,0.00027976,7]
[370342649,1751970654238,-460.0,0.00027976,3]
[370342650,1751970654247,-460.0,0.00027976,3]
[370342651,1751970654257,-260.850857,0.00027976,7]
[370342652,1751970654266,-260.850857,0.00027976,7]
[370342653,1751970654276,-460.0,0.00027976,3]
[370342654,1751970654285,-260.850857,0.00027976,7]
[370342655,1751970654294,-260.850857,0.00027976,7]
[370342656,1751970654304,-151.0,0.00027976,7]
[370342657,1751970654313,-191.45150646,0.00027976,3]
[370342658,1751970654323,-151.0,0.00027976,7]
[370342659,1751970654337,-492.97049626,0.00027976,3]
[370342660,1751970654347,-460.0,0.00027976,3]
[370342661,1751970654358,-463.57935116,0.00027976,3]
[370342662,1751970654370,-490.0,0.00027976,2]
[370342663,1751970654382,-460.0,0.00027976,3]
[370342664,1751970654392,-151.0,0.00027976,7]
[370342665,1751970654402,-460.0,0.00027976,3]
[370342666,1751970654413,-155.206428,0.00027976,7]
[370342667,1751970654422,-556.25036116,0.00027976,3]
[370342668,1751970654432,-460.0,0.00027976,3]
[370342669,1751970654441,-492.88873602,0.00027976,3]
[370342670,1751970654451,-460.0,0.00027976,3]
[370342671,1751970654461,-494.63084835,0.00027976,3]
[370342672,1751970654471,-151.0,0.00027976,7]
[370342673,1751970654481,-151.0,0.00027976,7]
[370342674,1751970654490,-151.0,0.00027976,7]
[370342675,1751970654500,-151.0,0.00027976,7]
[370342676,1751970654509,-460.0,0.00027976,3]
[370342677,1751970654522,-185.407235,0.00027976,7]
[370342678,1751970654532,-491.83049742,0.00027976,3]
[370342679,1751970654542,-495.00828897,0.00027976,3]
[370342680,1751970654551,-460.0,0.00027976,3]
[370342681,1751970654561,-568.97263551,0.00027976,3]
[370342682,1751970654571,-460.0,0.00027976,3]
[370342683,1751970654582,-374.5339688,0.00027976,3]
[370342684,1751970654592,-483.32,0.00027976,3]
[370342685,1751970654602,-460.0,0.00027976,3]
[370342686,1751970654612,-580.0,0.00027976,3]
[370342687,1751970654623,-460.0,0.00027976,3]
[370342688,1751970654632,-460.0,0.00027976,3]
[370342689,1751970654641,-460.0,0.00027976,3]
[370342690,1751970654651,-460.0,0.00027976,3]
[370342691,1751970654660,-460.0,0.00027976,3]
[370342692,1751970654669,-460.0,0.00027976,3]
[370342693,1751970654679,-797.69,0.00027976,3]
[370342694,1751970654688,-460.0,0.00027976,3]
[370342695,1751970654698,-460.0,0.00027976,3]
[370342696,1751970654707,-460.0,0.00027976,3]
[370342697,1751970654717,-460.0,0.00027976,3]
[370342698,1751970654726,-460.0,0.00027976,3]
[370342699,1751970654736,-151.0,0.00027976,7]
[370342700,1751970654745,-460.0,0.00027976,3]
[370342701,1751970654755,-460.0,0.00027976,3]
[370342702,1751970654764,-460.0,0.00027976,3]
[370342703,1751970654774,-460.0,0.00027976,3]
[370342704,1751970654784,-460.0,0.00027976,3]
[370342705,1751970654794,-219.22795996,0.00027976,3]